Cogmind - Beta 11.1 @@@ ROGUE MODE // 2022.10.18 @ 12:49:43 Player: Faeren Result: Destroyed by D-53 Grenadier with Mini Grenade Launcher Performance ------------- Evolutions (0) 0 Regions Visited (4) 800 Robots Destroyed (23) 115 Value Destroyed (383) 383 Prototype IDs (1) 20 Alien Tech Used (0) 0 Bonus (340) 340 TOTAL SCORE: 1658 Bonus ------- Follower Combat Kills 40 Aligned with FarCom 300 Cogmind --------- Core Integrity 0/250 Matter 290/300 Energy 100/100 System Corruption 0% Temperature Cool (0) Movement Core (100) Ox1 Location -9/Mines Parts ------- > --- POWER (1) -------- (None) > --- PROPULSION (2) --- (None) > --- UTILITY (2) ------ (None) > --- WEAPON (2) ------- Datajack Makeshift Axe > --- INVENTORY (5) ---- Aluminum Leg Aluminum Leg Targeting Computer Supersonic Drone Bay (1/1) Peak State ------------ > --- POWER ------------ Ion Engine > --- PROPULSION ------- Aluminum Leg Makeshift Leg > --- UTILITY ---------- Small Storage Unit Supersonic Drone Bay > --- WEAPON ----------- EM Pulse Gun Grenade Launcher > --- INVENTORY -------- Ion Engine Aluminum Leg Aluminum Leg Targeting Computer Light Armor Plating Datajack Makeshift Axe [Rating: 18] Favorites ----------- Power Ion Engine Engine Ion Engine Propulsion Aluminum Leg Leg Aluminum Leg Utility Small Storage Unit Device Supersonic Drone Bay Storage Small Storage Unit Processor Signal Interpreter Protection Core Shielding Weapon EM Pulse Gun Energy Gun EM Pulse Gun Ballistic Gun Light Assault Rifle Launcher Grenade Launcher Impact Weapon Hammer Slashing Weapon Makeshift Axe Special Melee Weapon Datajack Build | -11 -10 -10 -10 -9 ------- Run | Scr Mat Min Exi Min Slots Evolved . | . . . . . Power . | . . . . . Propulsion . | . . . . . Utility . | . . . . . Weapon . | . . . . . Parts Attached 42 | 7 8 15 1 11 Power 3 | 2 . 1 . . Engine 3 | 2 . 1 . . Core . | . . . . . Reactor . | . . . . . Propulsion 5 | 2 . 1 . 2 Treads . | . . . . . Leg 5 | 2 . 1 . 2 Wheel . | . . . . . Hover . | . . . . . Flight . | . . . . . Utility 8 | 1 3 . 1 3 Device 3 | . 1 . 1 1 Storage 1 | 1 . . . . Processor 1 | . 1 . . . Hackware . | . . . . . Protection 3 | . 1 . . 2 Artifact . | . . . . . Weapon 26 | 2 5 13 . 6 Energy Gun 12 | 2 3 6 . 1 Energy Cannon . | . . . . . Ballistic Gun 1 | . 1 . . . Ballistic Cannon . | . . . . . Launcher 6 | . . 4 . 2 Special Weapon . | . . . . . Impact Weapon 3 | . . 3 . . Slashing Weapon 3 | . 1 . . 2 Piercing Weapon . | . . . . . Special Melee Weapon 1 | . . . . 1 Unidentified Prototypes 1 | . . . 1 . Parts Lost 10 | . . 2 . 8 Power 1 | . . . . 1 Propulsion 2 | . . . . 2 Utility 2 | . . . . 2 Weapon 5 | . . 2 . 3 Highest Loss Streak 5 | . . 2 . 5 To Critical Strikes 1 | . . . . 1 Average Slot Usage (%) 98 | . 95 99 100 94 Engine 13 | . 14 14 14 13 Leg 27 | . 28 28 28 27 Device 1 | . 1 . 5 1 Storage 13 | . 14 14 14 13 Protection 10 | . 4 14 8 11 Energy Gun 21 | . 20 22 28 14 Ballistic Gun 1 | . 6 . . . Launcher 3 | . . 3 . 7 Naked Turns . | . . . . . Heaviest Build 18 | 13 15 16 15 18 Greatest Support 30 | 20 20 20 20 30 Greatest Overweight (x) 4 | . . . . 4 Average Overweight (x) . | . . . . . Largest Inventory Capacity 8 | 8 8 8 8 8 Average Capacity 7 | 6 8 8 8 7 Most Carried 8 | 5 8 8 8 8 Average Carried 7 | 2 6 7 8 7 Final Capacity 8 | 8 8 8 8 5 Final Carried 8 | 2 8 8 8 4 Class Distribution -------------------- 83% | Mutant 16% | Scavenger-Mutant Dominant Class ---------------- Mutant | -10/Materials Mutant | -10/Mines Mutant | -10/Exiles Scavenger-Mutant | -9/Mines Resources | -11 -10 -10 -10 -9 ----------- Run | Scr Mat Min Exi Min Matter Collected 571 | 154 59 276 . 82 Remotely . | . . . . . Salvage Created 633 | . 173 298 . 162 Parts 35 | . 8 20 . 7 Haulers Intercepted 2 | . 2 . . . Recyclers Shooed 1 | . 1 . . . Parts Field Recycled . | . . . . . Retrieved Matter . | . . . . . Parts Self-Destructed . | . . . . . Prevented . | . . . . . Kills | -11 -10 -10 -10 -9 ------- Run | Scr Mat Min Exi Min Combat Hostiles Destroyed 18 | . 1 11 . 6 Melee 4 | . . 3 . 1 Guns 5 | . 1 2 . 2 AOE 8 | . . 5 . 3 Classes Destroyed 7 | . 3 3 . 1 Worker 2 | . . 2 . . Hauler 2 | . 2 . . . Watcher 1 | . 1 . . . Swarmer 12 | . . 8 . 4 Grunt 4 | . 1 2 . 1 Duelist 1 | . . . . 1 Sentry 1 | . . 1 . . Best Kill Streak 4 | . 2 3 . 4 Combat Bots Only 4 | . 1 3 . 4 Max Kills in Single Turn 3 | . 1 3 . 3 Gunslinging . | . . . . . Exploded 3 | . . 3 . 3 Melee 1 | . . 1 . 1 Uniques/NPCs Destroyed . | . . . . . Combat | -11 -10 -10 -10 -9 -------- Run | Scr Mat Min Exi Min Damage Taken 1295 | . 12 507 . 776 Core 258 | . . 73 . 185 Absorbed by Shields . | . . . . . Redirected to Shielding 12 | . . 12 . . Core Remaining (%) 100 | 100 . . . . Volleys Fired 45 | . 11 24 . 10 Largest 2 | . 2 2 . 2 Hottest 80 | . 80 80 . 80 Shots Fired 73 | . 18 36 . 19 Gun 70 | . 18 34 . 18 Cannon . | . . . . . Launcher 3 | . . 2 . 1 Special . | . . . . . Kinetic . | . . . . . Thermal . | . . . . . Explosive 3 | . . 2 . 1 Electromagnetic 70 | . 18 34 . 18 Robot Hit Streak 12 | . 5 12 . 7 Robot Miss Streak 2 | . 2 2 . 1 Penetration Max . | . . . . . Secondary Targets . | . . . . . Shots Hit Robots 64 | . 11 34 . 19 Core Hits 33 | . 7 17 . 9 Critical Kills . | . . . . . Critical Parts Destroyed 2 | . . 2 . . Critical Strikes 4 | . . 3 . 1 Corrupt 1 | . . 1 . . Smash 2 | . . 2 . . Sever 1 | . . . . 1 Melee Attacks 25 | . . 17 . 8 Impact 17 | . . 17 . . Slashing 7 | . . . . 7 Piercing . | . . . . . Sneak Attacks 1 | . . 1 . . Combat Hostiles . | . . . . . Follow-up Attacks 1 | . . 1 . . Damage Inflicted 1468 | . 160 845 . 463 Guns 650 | . 160 307 . 183 Cannons . | . . . . . Explosions 373 | . . 237 . 136 Melee 384 | . . 240 . 144 Ramming 61 | . . 61 . . Kinetic . | . . . . . Thermal 63 | . . 39 . 24 Explosive 310 | . . 198 . 112 Electromagnetic 650 | . 160 307 . 183 Impact 240 | . . 240 . . Slashing 144 | . . . . 144 Piercing . | . . . . . Highest Corruption . | . . . . . Average Corruption . | . . . . . Corruption Purged . | . . . . . Corruption Blocked . | . . . . . Overload Shots . | . . . . . Overflow Damage 76 | . . 76 . . Projectiles . | . . . . . Explosions . | . . . . . Melee 76 | . . 76 . . Knockbacks . | . . . . . Impact . | . . . . . Kinetic . | . . . . . Secondary . | . . . . . Self-Inflicted Damage 38 | . . 38 . . Shots 1 | . . 1 . . Rammed . | . . . . . Targets Rammed 12 | . . 12 . . Kicked 12 | . . 12 . . Crushed . | . . . . . Highest Temperature 215 | . 78 215 . 192 Average Temperature 76 | . 29 83 . 98 Received Heat Transfer 180 | . 6 108 . 66 Siege Activations . | . . . . . Robots Corrupted 1 | . . 1 . . Combat Hostiles 1 | . . 1 . . Parts Fried 5 | . 2 2 . 1 Impact Corruptions 5 | . . 5 . . Robots Melted . | . . . . . Combat Hostiles . | . . . . . Parts Melted 1 | . . . . 1 Heat Transferred 100 | . . 50 . 50 Parts Sabotaged . | . . . . . Parts Stolen . | . . . . . Parts Stripped . | . . . . . Power Chain Reactions 2 | . . 1 . 1 Missiles Intercepted . | . . . . . Alert | -11 -10 -10 -10 -9 ------- Run | Scr Mat Min Exi Min Peak Influence 265 | . 71 265 . 160 Initial 27 | . . 27 . . Average 114 | . 14 157 . 117 Maximum Alert Level 1 | . . 1 . . Low Security (%) 80 | 100 100 64 . 100 Level 1 19 | . . 35 . . Level 2 . | . . . . . Level 3 . | . . . . . Level 4 . | . . . . . Level 5 . | . . . . . High Security . | . . . . . Max Security . | . . . . . Squads Dispatched . | . . . . . Investigation . | . . . . . Extermination . | . . . . . Reinforcement . | . . . . . Assault . | . . . . . Garrison . | . . . . . Intercept . | . . . . . Searches Triggered . | . . . . . Construction Impeded . | . . . . . Haulers Reinforced . | . . . . . Active Scanning Responses . | . . . . . Cargo Convoy Interrupts . | . . . . . Stealth | -11 -10 -10 -10 -9 --------- Run | Scr Mat Min Exi Min Distress Signals 1 | . 1 . . . Communications Jammed . | . . . . . Distress Signals . | . . . . . Times Spotted 39 | . 4 14 . 21 Peak Tracking Total 8 | . 2 3 . 8 Tactical Retreats 8 | . 1 5 . 2 Traps | -11 -10 -10 -10 -9 ------- Run | Scr Mat Min Exi Min Traps Triggered . | . . . . . Indirectly . | . . . . . Trap Hack Attempts . | . . . . . Triggered . | . . . . . Disarmed . | . . . . . Reprogrammed . | . . . . . Reused . | . . . . . Traps Extracted . | . . . . . Installed . | . . . . . Triggered . | . . . . . Machines | -11 -10 -10 -10 -9 ---------- Run | Scr Mat Min Exi Min Machines Disabled 1 | . . 1 . . Max in Single Turn . | . . . . . Machines Sabotaged . | . . . . . Garrisons Compromised . | . . . . . Overloaded Fab Kills . | . . . . . Hacking | -11 -10 -10 -10 -9 --------- Run | Scr Mat Min Exi Min Machines Accessed 4 | . . 1 3 . Terminals 1 | . . 1 . . Fabricators . | . . . . . Repair Stations . | . . . . . Recycling Units . | . . . . . Scanalyzers . | . . . . . Garrison Access . | . . . . . Total Hacks 27 | . . 1 26 . Successful 26 | . . . 26 . Failed 1 | . . 1 . . Catastrophic 1 | . . 1 . . Database Lockouts . | . . . . . Manual 4 | . . 3 1 . Terminals 1 | . . 1 . . Fabricators . | . . . . . Repair Stations . | . . . . . Recycling Units . | . . . . . Scanalyzers . | . . . . . Garrison Access . | . . . . . Terminal Hacks 26 | . . . 26 . Record 26 | . . . 26 . Fabricator Hacks . | . . . . . Repair Station Hacks . | . . . . . Recycling Unit Hacks . | . . . . . Scanalyzer . | . . . . . Garrison Access Hacks . | . . . . . Unauthorized Hacks . | . . . . . Terminals . | . . . . . Fabricators . | . . . . . Repair Stations . | . . . . . Recycling Units . | . . . . . Scanalyzers . | . . . . . Garrison Access . | . . . . . Data Cores Recovered . | . . . . . Used . | . . . . . Hacking Detections 1 | . . 1 . . Full Trace Events . | . . . . . Feedback Events . | . . . . . Feedback Blocked . | . . . . . Robot Schematics Acquired . | . . . . . Robots Built . | . . . . . Authchips . | . . . . . Time . | . . . . . Total Robot Build Rating . | . . . . . Part Schematics Acquired . | . . . . . Parts Built . | . . . . . Authchips . | . . . . . Time . | . . . . . Total Part Build Rating . | . . . . . Parts Repaired . | . . . . . Time . | . . . . . Parts Recycled . | . . . . . Recycled Matter . | . . . . . Retrieved Matter . | . . . . . Retrieved Components . | . . . . . Parts Scanalyzed . | . . . . . Part Schematics Acquired . | . . . . . Parts Damaged . | . . . . . Bothacking | -11 -10 -10 -10 -9 ------------ Run | Scr Mat Min Exi Min Used RIF Installer . | . . . . . Robots Hacked . | . . . . . Non-combat . | . . . . . Combat . | . . . . . Robot Hacks Applied . | . . . . . Relay Couplers Released . | . . . . . Fabnet Peak Effective % . | . . . . . Robots Rewired . | . . . . . Allies Hacked . | . . . . . Hacks Repelled . | . . . . . Allies | -11 -10 -10 -10 -9 -------- Run | Scr Mat Min Exi Min Total Allies 3 | . . 3 . . Largest Group 3 | . . 3 1 1 Highest-Rated Group 40 | . . 40 16 16 Highest-Rated Ally 16 | . . 16 16 16 Total Orders 6 | . . 2 2 2 GUARD 2 | . . 2 . . EXPLORE 3 | . . . 1 2 RETURN 1 | . . . 1 . Ally Attacks 13 | . . 9 . 4 Total Damage 163 | . . 103 . 60 Kills 3 | . . 3 . . Allies Corrupted . | . . . . . Allies Melted . | . . . . . Intel | -11 -10 -10 -10 -9 ------- Run | Scr Mat Min Exi Min Robot Analysis Total . | . . . . . Derelict Logs Recovered 1 | . . . . 1 Drone Launches 3 | . . . 1 2 Drone Recoveries 3 | . . . 1 2 Exploration | -11 -10 -10 -10 -9 ------------- Run | Scr Mat Min Exi Min Turns Passed 2196 | 53 374 985 356 428 Spaces Moved 1518 | 37 249 688 296 248 Core 27 | 12 . . . 15 Treads . | . . . . . Legs 1491 | 25 249 688 296 233 Wheels . | . . . . . Hover . | . . . . . Flight . | . . . . . Fastest Speed 50 | 50 120 120 120 50 Average Speed 120 | 97 120 120 120 126 Slowest Speed 250 | 120 120 120 120 250 Overloaded Moves . | . . . . . Propulsion Burnouts . | . . . . . Robots Hopped . | . . . . . Cave-ins Triggered . | . . . . . Exploration Rate (%) 58 | 3 37 66 91 93 Regions Visited 4 Branch Regions 3 Pre-discovered Areas 1 | . . 1 . . Known Exits Taken 1 | . 1 . . . Unknown Exits Taken 3 | 1 . 1 1 . Scrap Searched 1 | . . 1 . . Spaces Dug 1 | . . . . 1 Terrain Destroyed 22 | . . 16 . 6 Melee 1 | . . . . 1 Projectile . | . . . . . AOE 21 | . . 16 . 5 Terrain Rammed . | . . . . . Walls Destroyed . | . . . . . Machines Disabled . | . . . . . Actions | -11 -10 -10 -10 -9 --------- Run | Scr Mat Min Exi Min Total 1767 | 52 308 776 297 334 Wait 79 | 3 13 12 . 51 Move 1514 | 36 248 687 295 248 Hop . | . . . . . Pick Up 33 | 6 18 6 . 3 Fast Attach 4 | 2 . . 1 1 Attach 12 | 4 2 2 . 4 Detach . | . . . . . Swap 26 | 1 6 13 . 6 Drop 18 | . 10 4 1 3 Fire 45 | . 11 24 . 10 Melee 24 | . . 16 . 8 Ram . | . . . . . Kick 12 | . . 12 . . Crush . | . . . . . Escape Stasis . | . . . . . Rewire . | . . . . . Trap . | . . . . . Miscellaneous . | . . . . . Route ------- -11/Scrapyard -10/Materials -10/Mines (discovered 3 exits: [*Mat x2] / *Exi) -10/Exiles (discovered 2 exits: [*Min x2]) -9/Mines (discovered 2 exits: [*Mat x2]) History --------- Turn | Location | Event 17 | -11/Scrapyard | Discovered new exit (range 15) 54 | -11/Scrapyard | Entered Materials 177 | -10/Materials | Discovered new exit (range 16) 223 | -10/Materials | Identified exit to Mines 332 | -10/Materials | Build established: Mutant 428 | -10/Materials | Entered Mines 500 | -10/Mines | Discovered new exit (range 3) 768 | -10/Mines | A weapon hastily lodged in a ceiling crevice suddenly fell to the ground 814 | -10/Mines | Deemed a non-threat by the Exiles lab entrance 814 | -10/Mines | Discovered new exit (range 5) 1032 | -10/Mines | Learned location of Storage (-7) 1136 | -10/Mines | Discovered new exit (range 6) 1151 | -10/Mines | Assisted by bots powering up and referring to "LRC-V3" 1413 | -10/Mines | Entered Exiles 1413 | -10/Exiles | Accompanied by 1 ally 1434 | -10/Exiles | Discovered new exit (range 15) 1448 | -10/Exiles | Met 8R-AWN 1470 | -10/Exiles | Met EX-HEX 1509 | -10/Exiles | Met EX-BIN 1549 | -10/Exiles | Aligned with FarCom system 1550 | -10/Exiles | Given EX-Vault access code 1613 | -10/Exiles | Opened EX-Vault 1620 | -10/Exiles | Found Prototype Device 1620 | -10/Exiles | Identified Supersonic Drone Bay 1627 | -10/Exiles | Discovered new exit (range 56) 1648 | -10/Exiles | Warned to stay clear of 0b10 Research branches 1664 | -10/Exiles | Exiles lab attacked by MAIN.C 1769 | -10/Exiles | Left Exiles lab with Supersonic Drone Bay 1769 | -10/Exiles | Entered Mines 1769 | -9/Mines | Accompanied by 1 ally 1809 | -9/Mines | Discovered new exit (range 22) 1849 | -9/Mines | Found a hidden stash of uninstalled traps 1917 | -9/Mines | Discovered new exit (range 20) 2090 | -9/Mines | Assembled infested the area 2110 | -9/Mines | Build established: Scavenger-Mutant 2179 | -9/Mines | Core integrity fell below 50% 2187 | -9/Mines | Core integrity fell below 20% 2197 | -9/Mines | Destroyed by D-53 Grenadier with Mini Grenade Launcher Last Messages --------------- 02124_ as-76174 destroyed. 02124_ as-55840 destroyed. 02127_ as-50954 destroyed. 02172_ Lgt. Armor Plating destroyed. 02174_ The unstable cave ceiling collapses. 02174_ K-01 Serf destroyed. 02178_ The unstable cave ceiling collapses. 02178_ Mak. Leg destroyed. 02179_ K-01 Serf cleans the Seismic Survey Station. 02180_ D-53 Grenadier Imp. Light Armor Plating severed. 02180_ Aluminum Leg destroyed. 02180_ D-53 Grenadier destroyed. 02181_ The unstable cave ceiling collapses. 02182_ K-01 Serf collects debris. 02182_ Ion Engine destroyed. 02184_ The unstable cave ceiling collapses. 02184_ Seismic Survey Station disabled. 02186_ K-01 Serf collects debris. 02186_ Acquired Imp. Light Armor Plating. 02186_ Sml. Storage Unit destroyed. Map ----- +----------------------------------------------------+ | #??# #???????????????????????# # | | ! #### ### #???????????????????## ## # | | #?????????????????????####?## # | | ##########???######??????????????????# | | ###??###???????# ??????????????????## | | ##???## ##?????# #?????????????????### | | ##????# #?????# #????????????????## | | ##?????# #?????# #??????????####### | | # #??????# ##??### #?????????## # | | # #???????# #### #?????????# ## | | #$########## ## #?????????# #? | | $ ## ##?????????## # ## | | ########## #???????????#### ## ## # | | ??????##?# ##???????######## ## #### # | | ?????## #### ##???###### # # ## #??## | | ?????# ???## ####???## # ## #???# | | ?????# #???# ###?????## #???# | | ?????# #??# #??????## ####???## | | ??????# ### #?????## ##???????## | | ???????# #?##### ! #?????????# | | ???????## ##### # # #?????????? | | ########## ## % # ##?????????? | | # #?## ## ## ### ##??????????# | | # < #??# ### ## ##?## " #??????????# | | # ## ## #??# #???# """ #########?# | | # #??# @##### """ ## | | # ### % #### d ####### ## | | ## ### ## ##### #???### ### | | ?# ### ; #???# #???# ### | | ?# # #???########???# #?? | | ?# ## #??????????????# #?? | | ?###### ### #??????????????# < #?? | | ??????# #?# #??????????????# #?? | | ??????# ###### #?# ###????????????# #?? | | ?????## ##??## ##?# ##???????????# #?? | | ?????# ###?#######?##t #???????????# #?? | | ?????# ##????##### #???????????###T###?? | | ###### #???## #?????????????###???? | | &&&#??## [###???????????????????? | | =& ##?## ##?????????????????????? | | #########% ##### ##??????###????????????? | | ????????# ### ##?????# #????????????? | | ?####???# ## ###### #????????????? | | ## ##?## ## #### #????????????? | | # #?##= ## #??## ##????????????? | | #?##==## ##???# #?????????????? | | #??##%%### ##???## ##?????????????? | | #???##% ####### ## ##??????????????? | | ##??##* ##???# ## ##???????????????? | | #??# #???# #### ##????????????????? | +----------------------------------------------------+ Best States ------------- Heat Dissipation 25 Energy Generation 10 Energy Capacity 250 Matter Stores 300 Matter Capacity 300 Sight Range 16 Terrain Scan Range 14 Terrain Scan Density 10 Armor Coverage 150 Core Shielding 20 Evasion (%) 55 Item Schematics ----------------- None Robot Schematics ------------------ None Fabricated ------------ Nothing Alien Tech Used ----------------- None Achievements -------------- None Challenges ------------ None Game ------ Seed DecoyAerolevMallet Manual? 0 Play Time 00:51:55 Cumulative 12.1 hours Start 2022.10.18 @ 11:43:50 End 2022.10.18 @ 12:49:43 Sessions 1 Manual Loads 0 Difficulty Rogue Special Mode None Game No. 10 Rogue 10 Adventurer 0 Explorer 0 Win Type - Total 0 Types 0/0/0/0/0/0/0/0/0 Lore% 19 Gallery% 13 Achievement% 15 Wizard Run 0 Options --------- ASCII 0 Keyboard 0 Movement Mouse Keybinds 0 Fullscreen 1 Font 18/SmallcapsGlow Map View 76x50 Tactical HUD 1 Map Filters NONE Filters NONE Steam 1 RUN: fc0511f7-8512-47b6-a005-392430a22538